Cogmind - Beta 13 *** ADVENTURER MODE // 2024.04.24 @ 01:00:05 Player: GayPredator Result: Destroyed by S-43 Plague with Heavy Machine Gun Performance ------------- Evolutions (7) 3500 Regions Visited (15) 3000 Robots Destroyed (124) 620 Value Destroyed (4348) 4348 Prototype IDs (27) 540 Alien Tech Used (0) 0 Bonus (1662) 1662 TOTAL SCORE: 13670 Bonus ------- High Alert Combat Kills 505 Follower Combat Kills 626 Entered DSFs 500 Scanned by Researcher 500 Friendly Fire -469 Cogmind --------- Core Integrity 0/1300 Matter 3/300 Energy 60/100 System Corruption 5% Temperature Cool (0) Movement Core (50) Location -3/Testing Parts ------- > --- POWER (2) -------- (None) > --- PROPULSION (4) --- (None) > --- UTILITY (9) ------ (None) > --- WEAPON (6) ------- Lance > --- INVENTORY (5) ---- Improved Antigrav System Advanced Drone Bay (2/2) Sensor Drone Bay (13/20) Peak State ------------ > --- POWER ------------ Micro Fission Core Micro Antimatter Reactor > --- PROPULSION ------- Antigrav System Nuclear Pulse Array > --- UTILITY ---------- Advanced Target Analyzer Advanced ECM Suite Improved Hacking Suite System Shield Ghost Barrier Improved Corruption Screen Sensor Drone Bay > --- WEAPON ----------- Backup Laser I Disintegrator Spear > --- INVENTORY -------- KE Penetrator Heavy Gauss Cannon [Rating: 106] Favorites ----------- Power Cold Fusion Reactor Engine Light Angular Momentum Engine Power Core Light Nuclear Core Reactor Cold Fusion Reactor Propulsion Compact Wheel Treads Light Treads Leg Enhanced Armored Leg Wheel Compact Wheel Hover Unit Antigrav System Flight Unit Nuclear Pulse Array Utility High-capacity Storage Unit Device Sensor Drone Bay Storage High-capacity Storage Unit Processor Machine Analyzer Hackware Improved Hacking Suite Protection Hardened Medium Armor Plating Weapon Gatling Laser Energy Gun Gatling Laser Energy Cannon Matter Neutralizer Ballistic Gun Assault Rifle Ballistic Cannon Flak Cannon Launcher Heavy Missile Launcher Special Weapon Improved Remote Datajack Piercing Weapon Spear Build | -11 -10 -10 -9 -8 -7 -6 -5 -5 -5 -5 -4 -4 -4 -3 -3 ------- Run | Yrd Mat Min Mat Mat Fac Fac Fac Was Fac DSF Fac Upp Upp Res Tes Slots Evolved 14 | . . . 2 2 2 2 2 . . . 2 . . 2 . Power 1 | . . . . . 1 . . . . . . . . . . Propulsion 2 | . . . 1 . . 1 . . . . . . . . . Utility 7 | . . . . 2 1 . 2 . . . 2 . . . . Weapon 4 | . . . 1 . . 1 . . . . . . . 2 . Parts Attached 177 | 7 2 4 7 12 17 35 7 5 . 10 38 6 . 2 25 Power 16 | 1 1 1 1 1 1 2 . . . . 5 . . 1 2 Engine 3 | 1 1 . . . 1 . . . . . . . . . . Core 6 | . . 1 1 1 . . . . . . 3 . . . . Reactor 7 | . . . . . . 2 . . . . 2 . . 1 2 Propulsion 31 | 2 . . 1 . 2 11 . . . . 8 . . . 7 Treads 2 | . . . . . . 2 . . . . . . . . . Leg 1 | . . . . . . . . . . . . . . . 1 Wheel 20 | 2 . . 1 . 2 9 . . . . 6 . . . . Hover 2 | . . . . . . . . . . . . . . . 2 Flight 6 | . . . . . . . . . . . 2 . . . 4 Utility 61 | 2 1 1 1 4 6 9 4 3 . 3 14 5 . 1 7 Device 41 | 1 . 1 1 2 4 7 3 2 . 1 9 4 . 1 5 Storage 2 | 1 1 . . . . . . . . . . . . . . Processor 4 | . . . . 1 . 1 . . . . . 1 . . 1 Hackware 7 | . . . . . 1 . . . . 2 3 . . . 1 Protection 7 | . . . . 1 1 1 1 1 . . 2 . . . . Artifact . | . . . . . . . . . . . . . . . . Weapon 69 | 2 . 2 4 7 8 13 3 2 . 7 11 1 . . 9 Energy Gun 16 | 1 . . . 1 . 8 1 2 . 3 . . . . . Energy Cannon 8 | . . . . . . . . . . 4 2 . . . 2 Ballistic Gun 22 | 1 . 2 4 3 5 1 1 . . . 4 . . . 1 Ballistic Cannon 5 | . . . . 1 . . . . . . 2 . . . 2 Launcher 12 | . . . . 2 3 4 1 . . . 2 . . . . Special Weapon 2 | . . . . . . . . . . . 1 . . . 1 Impact Weapon . | . . . . . . . . . . . . . . . . Slashing Weapon . | . . . . . . . . . . . . . . . . Piercing Weapon 4 | . . . . . . . . . . . . 1 . . 3 Special Melee Weapon . | . . . . . . . . . . . . . . . . Unidentified Prototypes 13 | . . 1 . 1 1 3 . 2 . 1 . . . . 4 Parts Lost 39 | . . . . . 4 4 . . . . 21 2 . 1 7 Power 3 | . . . . . . . . . . . 2 . . . 1 Propulsion 20 | . . . . . 3 3 . . . . 9 . . . 5 Utility 7 | . . . . . . 1 . . . . 3 2 . 1 . Weapon 9 | . . . . . 1 . . . . . 7 . . . 1 Highest Loss Streak 7 | . . . . . 3 2 . . . . 7 2 . 1 4 To Critical Strikes 1 | . . . . . . . . . . . . . . . 1 Average Slot Usage (%) 84 | . 100 98 84 99 97 91 100 100 100 90 69 61 57 55 31 Engine 1 | . 14 2 . . 5 . . . . . . . . . . Core 4 | . . 11 10 9 7 . . . . . . 5 5 4 2 Reactor 3 | . . . . . . 12 11 11 11 11 6 . . 2 2 Wheel 19 | . 28 28 27 27 22 19 23 23 23 23 11 . . . . Flight 1 | . . . . . . . . . . . 1 10 10 9 4 Device 14 | . 14 12 11 17 22 17 23 23 23 14 7 6 5 4 3 Storage 6 | . 14 14 11 9 7 6 5 5 5 5 3 . . . . Processor 3 | . . . . 5 7 3 5 5 5 5 5 5 5 4 2 Hackware 3 | . . . . . . . . . . 4 16 18 15 13 6 Protection 1 | . . . . 3 . 3 4 5 5 2 . . . . . Energy Gun 6 | . 14 1 . . . 20 18 17 17 11 7 . . . 1 Ballistic Gun 10 | . 14 26 23 25 9 1 . . . . 1 10 10 9 . Ballistic Cannon 1 | . . . . 1 7 . . . . . 1 . . . . Launcher 1 | . . . . . 4 1 3 5 5 1 . . . . . Naked Turns 119 | . . . . . . . . . . . . . . . 119 Heaviest Build 127 | 13 50 63 66 73 89 111 111 111 110 127 120 32 18 26 46 Greatest Support 48 | 32 32 32 42 42 42 48 48 48 48 48 48 26 26 26 26 Greatest Overweight (x) 11 | . 1 1 1 1 3 5 2 2 2 2 11 1 . . 5 Average Overweight (x) 1 | . . 1 1 1 1 2 2 2 2 1 1 . . . . Largest Inventory Capacity 20 | 8 20 20 20 20 20 20 20 20 20 20 20 5 5 5 5 Average Capacity 17 | 7 16 20 20 20 20 20 20 20 20 20 15 5 5 5 5 Most Carried 20 | 3 6 9 13 20 20 20 18 20 20 20 17 5 4 5 5 Average Carried 12 | . 4 6 10 14 19 15 15 19 20 17 9 3 4 3 3 Final Capacity 20 | 8 20 20 20 20 20 20 20 20 20 20 5 5 5 5 5 Final Carried 20 | 3 6 9 13 19 20 16 18 20 20 17 3 4 4 4 4 Class Distribution -------------------- 20% | Mutant 16% | Scavenger-Skirmisher 15% | Scavenger-Tank 12% | Hacker-Mutant 8% | Skirmisher 7% | Gunner 7% | Tank 7% | Hacker-Skirmisher Dominant Class ---------------- Mutant | -10/Materials Mutant | -10/Mines Gunner | -9/Materials Scavenger-Skirmisher | -8/Materials Scavenger-Skirmisher | -7/Factory Tank | -6/Factory Scavenger-Tank | -5/Factory Scavenger-Tank | -5/Waste Scavenger-Tank | -5/Factory Hacker-Skirmisher | -5/DSF Hacker-Skirmisher | -4/Factory Hacker-Mutant | -4/Upper Caves Hacker-Mutant | -4/Upper Caves Hacker-Mutant | -3/Research Hacker-Mutant | -3/Testing Resources | -11 -10 -10 -9 -8 -7 -6 -5 -5 -5 -5 -4 -4 -4 -3 -3 ----------- Run | Yrd Mat Min Mat Mat Fac Fac Fac Was Fac DSF Fac Upp Upp Res Tes Matter Collected 3375 | 279 16 120 280 369 320 516 65 . . 241 666 209 . 32 262 Remotely . | . . . . . . . . . . . . . . . . Salvage Created 4004 | 116 93 204 302 398 463 650 381 . . . 1070 26 . 32 269 Parts 225 | 8 3 19 23 35 33 23 29 . . . 30 3 . 1 18 Haulers Intercepted . | . . . . . . . . . . . . . . . . Recyclers Shooed 5 | . . . . . 2 1 2 . . . . . . . . Parts Field Recycled 43 | . . . . . 4 39 . . . . . . . . . Retrieved Matter 278 | . . . . . 33 245 . . . . . . . . . Parts Self-Destructed 8 | . . . . . . . . . . . . 8 . . . Prevented . | . . . . . . . . . . . . . . . . Kills | -11 -10 -10 -9 -8 -7 -6 -5 -5 -5 -5 -4 -4 -4 -3 -3 ------- Run | Yrd Mat Min Mat Mat Fac Fac Fac Was Fac DSF Fac Upp Upp Res Tes Combat Hostiles Destroyed 73 | . 2 11 6 8 7 10 8 . . . 17 1 . . 3 Melee 2 | . . . . . . . . . . . . . . . 2 Guns 43 | . 2 11 6 8 3 6 2 . . . 4 1 . . . Cannons 11 | . . . . . 4 1 . . . . 5 . . . 1 AOE 11 | . . . . . . . 5 . . . 6 . . . . Classes Destroyed 15 | 2 1 1 5 1 2 2 . . . . . . . . 1 Worker 7 | . . . . 1 2 1 1 . . . 2 . . . . Builder 10 | . . . 1 . 3 1 2 . . . 2 . . . 1 Tunneler 3 | 2 . . . . . . 1 . . . . . . . . Recycler 4 | 1 . . . . 1 1 . . . . 1 . . . . Mechanic 2 | . . . . . . 2 . . . . . . . . . Operator 9 | . . . 1 3 . 2 1 . . . 1 . . 1 . Drone 2 | . . . . . . 1 1 . . . . . . . . Watcher 14 | . . . 3 . 3 1 3 . . . 3 . . . 1 Swarmer 22 | . . 9 . . . 6 4 . . . 2 1 . . . Grunt 25 | . 2 2 3 4 5 . . . . . 9 . . . . Duelist 2 | . . . 2 . . . . . . . . . . . . Researcher 2 | . . . . . . . . . . . . . . . 2 Sentry 11 | . . . 1 4 . 4 1 . . . 1 . . . . Hunter 8 | . . . . . 1 . 3 . . . 3 . . . 1 Programmer 5 | . . . . . 1 . . . . . 2 . . . 2 Best Kill Streak 8 | 3 2 3 4 3 8 3 7 . . . 8 1 . 1 3 Combat Bots Only 4 | . 2 3 3 2 4 3 4 . . . 4 1 . . 2 Max Kills in Single Turn 4 | 1 1 1 2 2 1 2 4 . . . 2 1 . 1 1 Gunslinging 1 | . . . . . . 1 . . . . . . . . . Exploded 4 | . . . . . . . 4 . . . 2 . . . . Melee 1 | . . . . . . . . . . . . . . . 1 Uniques/NPCs Destroyed . | . . . . . . . . . . . . . . . . Combat | -11 -10 -10 -9 -8 -7 -6 -5 -5 -5 -5 -4 -4 -4 -3 -3 -------- Run | Yrd Mat Min Mat Mat Fac Fac Fac Was Fac DSF Fac Upp Upp Res Tes Hostile Shots Fired 875 | . 1 33 24 31 35 106 23 . . . 334 20 4 16 248 Missed 287 | . . 10 9 8 3 30 5 . . . 111 14 1 9 87 Damage Taken 7732 | . 8 149 176 277 470 829 211 . . . 3250 101 42 82 2137 Core 2628 | . . 43 18 70 131 207 33 . . . 789 28 . 13 1296 Absorbed by Shields 50 | . . . . . . . 50 . . . . . . . . Ignored by Resistances 2190 | . 3 50 46 76 121 210 77 . . . 943 29 13 24 598 Regen/Repaired (Parts) 428 | . . . 35 . . 27 . 152 . 3 27 . . . 184 Core Remaining (%) 80 | 100 . 82 95 87 81 75 . . . 96 . . 28 . . Volleys Fired 268 | 3 2 20 26 29 40 30 22 . . . 60 2 . 3 31 Largest 4 | 2 2 2 3 3 3 4 3 . . . 4 2 . 2 3 Hottest 369 | 70 70 70 67 91 93 320 240 . . . 369 56 . 56 124 Shots Fired 602 | 6 4 40 59 79 78 88 48 . . . 141 4 . 6 49 Gun 452 | 6 4 40 59 74 42 76 43 . . . 71 4 . 6 27 Cannon 117 | . . . . 3 30 4 . . . . 58 . . . 22 Launcher 31 | . . . . 2 6 8 5 . . . 10 . . . . Special 2 | . . . . . . . . . . . 2 . . . . Kinetic 359 | 3 2 36 59 77 72 11 4 . . . 50 4 . 6 35 Thermal 210 | 3 2 4 . . . 69 39 . . . 79 . . . 14 Explosive 31 | . . . . 2 6 8 5 . . . 10 . . . . Electromagnetic . | . . . . . . . . . . . . . . . . Robot Hit Streak 62 | 6 10 14 16 17 11 62 15 . . . 16 6 . 1 15 Robot Miss Streak 6 | . . 3 4 6 5 3 4 . . . 4 1 . 2 3 Penetration Max 1 | . . . . . 1 . . . . . 1 . . . 1 Secondary Targets 8 | . . 2 2 . . 3 . . . . 1 . . . . Max Gunslinging Chain 2 | . . 1 1 . . 2 . . . . 1 . . . . Shots Hit Robots 438 | 6 4 30 43 61 58 54 30 . . . 94 5 . 2 51 Core Hits 273 | 3 4 14 22 30 52 48 36 . . . 44 3 . 1 16 Critical Kills 9 | . . . . . . . . . . . 8 . . 1 . Critical Parts Destroyed 15 | . . . . . 1 . . . . . 14 . . . . Critical Strikes 34 | 1 . 1 . . 1 . . . . . 22 . . 1 8 Burn 2 | 1 . 1 . . . . . . . . . . . . . Meltdown 2 | . . . . . . . . . . . 2 . . . . Destroy 22 | . . . . . 1 . . . . . 20 . . 1 . Blast 5 | . . . . . . . . . . . . . . . 5 Impale 3 | . . . . . . . . . . . . . . . 3 Melee Attacks 27 | . . . . . . . . . . . . 3 . . 24 Impact . | . . . . . . . . . . . . . . . . Slashing . | . . . . . . . . . . . . . . . . Piercing 27 | . . . . . . . . . . . . 3 . . 24 Sneak Attacks 1 | . . . . . . . . . . . . . . . 1 Combat Hostiles . | . . . . . . . . . . . . . . . . Follow-up Attacks . | . . . . . . . . . . . . . . . . Damage Inflicted 11800 | 81 46 380 787 1122 1255 1370 1412 . . . 3721 122 . 26 1478 Guns 6624 | 81 46 357 738 1053 619 1287 706 . . . 1298 29 . 26 384 Cannons 2110 | . . . . 44 520 40 . . . . 907 . . . 599 Explosions 2307 | . . . . . 60 43 706 . . . 1498 . . . . Melee 588 | . . . . . . . . . . . . 93 . . 495 Ramming 171 | . . 23 49 25 56 . . . . . 18 . . . . Kinetic 5015 | 42 20 344 738 1097 1139 124 . . . . 583 29 . 26 873 Thermal 3864 | 39 26 13 . . . 1203 851 . . . 1622 . . . 110 Explosive 2162 | . . . . . 60 43 561 . . . 1498 . . . . Electromagnetic . | . . . . . . . . . . . . . . . . Impact . | . . . . . . . . . . . . . . . . Slashing . | . . . . . . . . . . . . . . . . Piercing 588 | . . . . . . . . . . . . 93 . . 495 Highest Corruption 9 | . . . 1 . 1 . . 4 1 . 9 7 7 . 5 Average Corruption 3 | . . . 1 . 1 . . 2 1 . 6 6 7 . 4 Corruption Purged 7 | . . . . . . . . 3 1 . 3 . . . . Corruption Blocked 5 | . . . . . . . . . . . . . . . 5 Effects 45 | . . . 4 . . . . 3 . . 19 12 . . 7 Message Errors 8 | . . . . . . . . 1 . . 3 3 . . 1 Matter Fused 13 | . . . 2 . . . . . . . 5 4 . . 2 Heat Flow Errors 9 | . . . . . . . . 1 . . 2 4 . . 2 Energy Discharges 1 | . . . . . . . . . . . 1 . . . . Parts Rejected 1 | . . . . . . . . . . . 1 . . . . Data Loss (minor) 5 | . . . . . . . . 1 . . 3 1 . . . Misfires 2 | . . . . . . . . . . . 2 . . . . Alerts 1 | . . . 1 . . . . . . . . . . . . Weapon Failures 5 | . . . 1 . . . . . . . 2 . . . 2 Overload Shots . | . . . . . . . . . . . . . . . . Overflow Damage 298 | . . . . . 11 3 61 . . . 47 . . . 176 Projectiles 59 | . . . . . . . . . . . 18 . . . 41 Explosions 104 | . . . . . 11 3 61 . . . 29 . . . . Melee 135 | . . . . . . . . . . . . . . . 135 Knockbacks 39 | . . . . 1 18 2 . . . . 9 . . . 9 Impact 1 | . . . . . 1 . . . . . . . . . . Kinetic 34 | . . . . 1 16 2 . . . . 6 . . . 9 Secondary 4 | . . . . . 1 . . . . . 3 . . . . Self-Inflicted Damage 187 | . . 11 23 12 45 41 . . . . 55 . . . . Shots 5 | . . . . . 1 1 . . . . 3 . . . . Rammed 22 | . . 3 8 5 5 . . . . . 1 . . . . Targets Rammed 22 | . . 3 8 5 5 . . . . . 1 . . . . Kicked . | . . . . . . . . . . . . . . . . Crushed . | . . . . . . . . . . . . . . . . Highest Temperature 558 | 9 24 27 8 45 348 558 236 126 . . 548 173 . 6 103 Average Temperature 125 | 6 12 8 3 12 114 158 92 77 . . 193 82 . 4 60 Received Heat Transfer 1445 | . 6 36 84 135 243 102 6 . . . 788 9 18 . 18 Effects 32 | . . . . . 2 4 1 . . . 25 . . . . Shutdowns 2 | . . . . . 2 . . . . . . . . . . Energy Bleed 6 | . . . . . . . 1 . . . 5 . . . . Interference 13 | . . . . . . . . . . . 13 . . . . Matter Decay 4 | . . . . . . . . . . . 4 . . . . Short Circuit 1 | . . . . . . 1 . . . . . . . . . Damage (minor) 3 | . . . . . . . . . . . 3 . . . . Damage (major) 2 | . . . . . . 2 . . . . . . . . . Damage (core) 1 | . . . . . . 1 . . . . . . . . . Siege Activations . | . . . . . . . . . . . . . . . . Robots Corrupted . | . . . . . . . . . . . . . . . . Combat Hostiles . | . . . . . . . . . . . . . . . . Parts Fried . | . . . . . . . . . . . . . . . . Impact Corruptions . | . . . . . . . . . . . . . . . . Robots Melted 7 | . . . . . . 3 2 . . . 2 . . . . Combat Hostiles 6 | . . . . . . 3 1 . . . 2 . . . . Parts Melted 32 | . . . . . . 18 5 . . . 9 . . . . Heat Transferred 7237 | 185 74 111 . . . 2725 1700 . . . 1998 . . . 444 Parts Sabotaged . | . . . . . . . . . . . . . . . . Parts Stolen . | . . . . . . . . . . . . . . . . Parts Stripped . | . . . . . . . . . . . . . . . . Power Chain Reactions . | . . . . . . . . . . . . . . . . Alert | -11 -10 -10 -9 -8 -7 -6 -5 -5 -5 -5 -4 -4 -4 -3 -3 ------- Run | Yrd Mat Min Mat Mat Fac Fac Fac Was Fac DSF Fac Upp Upp Res Tes Peak Influence 1186 | 15 63 200 125 248 218 165 325 94 101 341 1186 . . 233 274 Initial 207 | . 8 20 22 18 96 35 54 94 57 61 154 . . 207 104 Average 153 | 3 19 129 29 90 71 77 144 94 79 142 716 . . 223 126 Maximum Alert Level 4 | . . 1 . 1 1 . 1 . . 1 4 . . 1 1 Low Security (%) 79 | 100 100 53 100 92 97 100 58 100 100 53 16 . . . 88 Level 1 12 | . . 46 . 7 2 . 41 . . 46 10 . . 100 11 Level 2 . | . . . . . . . . . . . 8 . . . . Level 3 6 | . . . . . . . . . . . 56 . . . . Level 4 . | . . . . . . . . . . . 8 . . . . Level 5 . | . . . . . . . . . . . . . . . . High Security . | . . . . . . . . . . . . . . . . Max Security . | . . . . . . . . . . . . . . . . Squads Dispatched 34 | . . . 1 4 4 1 3 . . 2 12 . . 3 4 Investigation 8 | . . . 1 . 2 . 1 . . . 2 . . 1 1 Extermination 4 | . . . . . 1 . . . . . 2 . . . 1 Reinforcement 18 | . . . . 4 1 1 1 . . 2 6 . . 1 2 Assault 1 | . . . . . . . . . . . 1 . . . . Garrison 3 | . . . . . . . 1 . . . 1 . . 1 . Intercept . | . . . . . . . . . . . . . . . . Searches Triggered . | . . . . . . . . . . . . . . . . Construction Impeded 5 | . . . . 1 1 . . . . . 3 . . . . Haulers Reinforced 1 | . . . . . . . . . . . 1 . . . . Active Scanning Responses 2 | . . . . . . . . . . . 2 . . . . Cargo Convoy Interrupts . | . . . . . . . . . . . . . . . . Stealth | -11 -10 -10 -9 -8 -7 -6 -5 -5 -5 -5 -4 -4 -4 -3 -3 --------- Run | Yrd Mat Min Mat Mat Fac Fac Fac Was Fac DSF Fac Upp Upp Res Tes Distress Signals 10 | . 1 . . 1 1 . 1 . . . 5 . . . 1 Communications Jammed . | . . . . . . . . . . . . . . . . Distress Signals . | . . . . . . . . . . . . . . . . Times Spotted 200 | . 3 11 14 14 23 14 9 . . 9 61 11 3 4 24 Peak Tracking Total 11 | . 3 3 4 3 4 3 4 . . 5 11 7 3 3 8 Tactical Retreats 22 | . . . . 1 3 1 . . . . 12 1 . 1 3 Traps | -11 -10 -10 -9 -8 -7 -6 -5 -5 -5 -5 -4 -4 -4 -3 -3 ------- Run | Yrd Mat Min Mat Mat Fac Fac Fac Was Fac DSF Fac Upp Upp Res Tes Traps Triggered 5 | . . . . . 1 . 2 . . 1 1 . . . . Indirectly . | . . . . . . . . . . . . . . . . Trap Hack Attempts . | . . . . . . . . . . . . . . . . Triggered . | . . . . . . . . . . . . . . . . Disarmed . | . . . . . . . . . . . . . . . . Reprogrammed 1 | . . . . . . . . . . . 1 . . . . Reused 1 | . . . . . . . . . . . 1 . . . . Traps Extracted . | . . . . . . . . . . . . . . . . Installed . | . . . . . . . . . . . . . . . . Triggered 2 | . . . . . . . . . . . 1 1 . . . Machines | -11 -10 -10 -9 -8 -7 -6 -5 -5 -5 -5 -4 -4 -4 -3 -3 ---------- Run | Yrd Mat Min Mat Mat Fac Fac Fac Was Fac DSF Fac Upp Upp Res Tes Machines Disabled 22 | . . . . . 2 2 5 . . . 11 . . . 2 Max in Single Turn 4 | . . . . . 2 1 4 . . . 1 . . . 1 Garrison Access 6 | . . . . 1 1 1 1 . . . 1 . . . 1 Machines Repaired . | . . . . . . . . . . . . . . . . Machines Dismantled . | . . . . . . . . . . . . . . . . Machines Sabotaged . | . . . . . . . . . . . . . . . . Overloaded Fab Kills . | . . . . . . . . . . . . . . . . Hacking | -11 -10 -10 -9 -8 -7 -6 -5 -5 -5 -5 -4 -4 -4 -3 -3 --------- Run | Yrd Mat Min Mat Mat Fac Fac Fac Was Fac DSF Fac Upp Upp Res Tes Machines Accessed 56 | . 2 1 8 5 10 6 4 . 2 . 6 2 . 2 8 Terminals 28 | . 2 . 4 3 5 3 . . 2 . 4 . . 1 4 Fabricators 5 | . . . . . 1 1 2 . . . . . . 1 . Repair Stations 5 | . . . 2 . . 1 . . . . . . . . 2 Recycling Units 5 | . . . 2 . 2 . . . . . 1 . . . . Scanalyzers 4 | . . . . 1 1 . 1 . . . . . . . 1 Garrison Access 6 | . . . . 1 1 1 1 . . . 1 . . . 1 Total Hacks 145 | . 5 1 23 14 22 10 8 . 4 . 28 3 . 5 22 Successful 95 | . 2 1 17 12 15 7 6 . 4 . 15 3 . 3 10 Failed 50 | . 3 . 6 2 7 3 2 . . . 13 . . 2 12 Catastrophic 5 | . . . . . . . 1 . . . 1 . . . 3 Database Lockouts . | . . . . . . . . . . . . . . . . Manual . | . . . . . . . . . . . . . . . . Terminals 77 | . 5 . 10 7 10 5 . . 4 . 23 . . 3 10 Fabricators 8 | . . . . . 2 1 3 . . . . . . 2 . Repair Stations 16 | . . . 7 . . 2 . . . . . . . . 7 Recycling Units 14 | . . . 6 . 6 . . . . . 2 . . . . Scanalyzers 15 | . . . . 6 2 . 4 . . . . . . . 3 Garrison Access 11 | . . . . 1 2 2 1 . . . 3 . . . 2 Terminal Hacks 48 | . 2 1 8 5 5 3 . . 4 . 13 3 . 1 3 Record 2 | . . . . . . . . . . . . 2 . . . Robot Analysis 1 | . 1 . . . . . . . . . . . . . . Prototype ID Bank 3 | . . . 1 1 1 . . . . . . . . . . Open Door 2 | . . 1 . . . . . . . . . 1 . . . Open DSF 4 | . . . . . 2 1 . . 1 . . . . . . Level Access Points 2 | . . . 1 . . . . . . . 1 . . . . Branch Access Points 1 | . 1 . . . . . . . . . . . . . . Emergency Access Points 1 | . . . . . . . . . . . 1 . . . . Recycling Unit Index 1 | . . . 1 . . . . . . . . . . . . Scanalyzer Index 1 | . . . 1 . . . . . . . . . . . . Garrison Index 1 | . . . . . . . . . 1 . . . . . . Unreport Threat 7 | . . . 1 . 1 2 . . . . 3 . . . . Locate Traps 4 | . . . . 1 1 . . . . . 1 . . . 1 Reprogram Traps 2 | . . . . . . . . . . . 2 . . . . Dispatch Records 1 | . . . 1 . . . . . . . . . . . . Security Status 1 | . . . . . . . . . 1 . . . . . . Patrol Status 1 | . . . . . . . . . 1 . . . . . . Investigation Status 3 | . . . 1 1 . . . . . . 1 . . . . Reinforcement Status 2 | . . . . 1 . . . . . . . . . 1 . Assault Status 1 | . . . . . . . . . . . 1 . . . . Recall Investigation 2 | . . . 1 . . . . . . . . . . . 1 Recall Assault 1 | . . . . . . . . . . . 1 . . . . Registered Prototypes 1 | . . . . . . . . . . . 1 . . . . Zone Layout 3 | . . . . 1 . . . . . . 1 . . . 1 Fabricator Hacks 5 | . . . . . 1 1 1 . . . . . . 2 . Network Status 1 | . . . . . . 1 . . . . . . . . . Load Schematic 2 | . . . . . 1 . . . . . . . . 1 . Build 2 | . . . . . . . 1 . . . . . . 1 . Repair Station Hacks 12 | . . . 5 . . 2 . . . . . . . . 5 Scan Component 6 | . . . 3 . . 1 . . . . . . . . 2 Repair 5 | . . . 2 . . 1 . . . . . . . . 2 Refit 1 | . . . . . . . . . . . . . . . 1 Recycling Unit Hacks 11 | . . . 4 . 6 . . . . . 1 . . . . Process 1 | . . . . . 1 . . . . . . . . . . Report Inventory 6 | . . . 2 . 3 . . . . . 1 . . . . Retrieve Matter 1 | . . . . . 1 . . . . . . . . . . Retrieve Components 3 | . . . 2 . 1 . . . . . . . . . . Scanalyzer 13 | . . . . 6 2 . 4 . . . . . . . 1 Insert Component 7 | . . . . 3 1 . 2 . . . . . . . 1 Analyze 6 | . . . . 3 1 . 2 . . . . . . . . Garrison Access Hacks 6 | . . . . 1 1 1 1 . . . 1 . . . 1 Seal Access 6 | . . . . 1 1 1 1 . . . 1 . . . 1 Unauthorized Hacks . | . . . . . . . . . . . . . . . . Terminals . | . . . . . . . . . . . . . . . . Fabricators . | . . . . . . . . . . . . . . . . Repair Stations . | . . . . . . . . . . . . . . . . Recycling Units . | . . . . . . . . . . . . . . . . Scanalyzers . | . . . . . . . . . . . . . . . . Garrison Access . | . . . . . . . . . . . . . . . . Data Cores Recovered 4 | . . . 1 1 . 2 . . . . . . . . . Used 4 | . . . 1 1 . 2 . . . . . . . . . Hacking Detections 40 | . 2 . 7 4 7 4 3 . . . 5 . . 2 6 Full Trace Events 5 | . . . 1 . 2 . . . . . . . . 1 1 Feedback Events . | . . . . . . . . . . . . . . . . Feedback Blocked . | . . . . . . . . . . . . . . . . Robot Schematics Acquired 4 | . . . . . . . . . . . . . . . 4 Robots Built . | . . . . . . . . . . . . . . . . Authchips . | . . . . . . . . . . . . . . . . Time . | . . . . . . . . . . . . . . . . Total Robot Build Rating . | . . . . . . . . . . . . . . . . Part Schematics Acquired 13 | . . . . 2 1 . 2 . . . . . . . 8 Parts Built 2 | . . . . . . . 1 . . . . . . 1 . Authchips . | . . . . . . . . . . . . . . . . Time 175 | . . . . . . . 139 . . . . . . 36 . Total Part Build Rating 12 | . . . . . . . 9 . . . . . . 3 . Parts Repaired 5 | . . . 2 . . 1 . . . . . . . . 2 Time 186 | . . . 82 . . 26 . . . . . . . . 78 Parts Recycled . | . . . . . . . . . . . . . . . . Recycled Matter 51 | . . . . . 51 . . . . . . . . . . Retrieved Matter 51 | . . . . . 51 . . . . . . . . . . Retrieved Components 14 | . . . 11 . 3 . . . . . . . . . . Parts Scanalyzed 7 | . . . . 3 1 . 2 . . . . . . . 1 Part Schematics Acquired 5 | . . . . 2 1 . 2 . . . . . . . . Parts Damaged . | . . . . . . . . . . . . . . . . Bothacking | -11 -10 -10 -9 -8 -7 -6 -5 -5 -5 -5 -4 -4 -4 -3 -3 ------------ Run | Yrd Mat Min Mat Mat Fac Fac Fac Was Fac DSF Fac Upp Upp Res Tes Used RIF Installer . | . . . . . . . . . . . . . . . . Robots Hacked 2 | . . . . . . . . . . . 2 . . . . Non-combat 1 | . . . . . . . . . . . 1 . . . . Combat 1 | . . . . . . . . . . . 1 . . . . Robot Hacks Applied 2 | . . . . . . . . . . . 2 . . . . parse_system 1 | . . . . . . . . . . . 1 . . . . find_chute 1 | . . . . . . . . . . . 1 . . . . Relay Couplers Released . | . . . . . . . . . . . . . . . . Fabnet Peak Effective % . | . . . . . . . . . . . . . . . . Robots Rewired . | . . . . . . . . . . . . . . . . Allies Hacked . | . . . . . . . . . . . . . . . . Hacks Repelled . | . . . . . . . . . . . . . . . . Allies | -11 -10 -10 -9 -8 -7 -6 -5 -5 -5 -5 -4 -4 -4 -3 -3 -------- Run | Yrd Mat Min Mat Mat Fac Fac Fac Was Fac DSF Fac Upp Upp Res Tes Total Allies 20 | . . . . . . . . 20 . . . . . . . Largest Group 20 | . . . . . . . . 20 19 19 18 . . . . Highest-Rated Group 721 | . . . . . . . . 721 692 692 667 . . . . Highest-Rated Ally 46 | . . . . . . . . 46 46 46 46 . . . . Total Orders 52 | . . 2 7 2 12 4 11 . 1 . 3 7 . 1 2 STAY 4 | . . . . . 1 . 3 . . . . . . . . FOLLOW 3 | . . . . . 1 . 1 . . . . 1 . . . EXPLORE 14 | . . 1 2 . 2 1 1 . . . 1 4 . 1 1 RETURN 31 | . . 1 5 2 8 3 6 . 1 . 2 2 . . 1 Ally Attacks 185 | . . . . . . . . . . 54 131 . . . . Total Damage 5068 | . . . . . . . . . . 942 4126 . . . . Kills 31 | . . . . . . . . . . 9 22 . . . . Allies Corrupted . | . . . . . . . . . . . . . . . . Allies Melted . | . . . . . . . . . . . . . . . . Intel | -11 -10 -10 -9 -8 -7 -6 -5 -5 -5 -5 -4 -4 -4 -3 -3 ------- Run | Yrd Mat Min Mat Mat Fac Fac Fac Was Fac DSF Fac Upp Upp Res Tes Robot Analysis Total 1 | . 1 . . . . . . . . . . . . . . Derelict Logs Recovered 1 | . . . . . . . . . . . . 1 . . . Drone Launches 44 | . . 2 7 5 8 3 9 1 . . 2 4 . 1 2 Drone Recoveries 37 | . . 2 6 5 7 3 6 . 1 . 2 4 . . 1 Exploration | -11 -10 -10 -9 -8 -7 -6 -5 -5 -5 -5 -4 -4 -4 -3 -3 ------------- Run | Yrd Mat Min Mat Mat Fac Fac Fac Was Fac DSF Fac Upp Upp Res Tes Turns Passed 7361 | 70 137 512 1077 749 1142 880 550 210 51 198 747 353 5 64 616 Spaces Moved 5402 | 47 101 363 725 363 739 525 368 155 33 135 551 644 14 124 515 Core 355 | 1 . . . . . . . . . . 142 . . . 212 Treads 12 | . . . . . . 12 . . . . . . . . . Legs . | . . . . . . . . . . . . . . . . Wheels 3821 | 46 101 363 725 363 739 513 368 155 33 135 280 . . . . Hover 42 | . . . . . . . . . . . . . . . 42 Flight 1172 | . . . . . . . . . . . 129 644 14 124 261 Fastest Speed 37 | 50 100 115 108 108 108 100 117 117 117 102 37 37 37 37 37 Average Speed 94 | 98 109 115 111 108 109 127 117 117 117 110 85 38 37 37 50 Slowest Speed 560 | 100 115 115 115 108 135 560 117 117 117 117 245 117 37 37 300 Overloaded Moves . | . . . . . . . . . . . . . . . . Propulsion Burnouts . | . . . . . . . . . . . . . . . . Robots Hopped 2 | . . . . . . . . . . . 1 . . 1 . Cave-ins Triggered . | . . . . . . . . . . . . . . . . Exploration Rate (%) 33 | 4 24 69 42 26 25 12 13 74 2 91 18 70 5 5 50 Regions Visited 15 Branch Regions 4 Pre-discovered Areas . | . . . . . . . . . . . . . . . . Known Exits Taken 6 | . 1 . 1 . 1 . . . 1 . 1 . 1 . . Unknown Exits Taken 6 | 1 . 1 . 1 . 1 . . . . . 1 . 1 . Scrap Searched 5 | . . 1 . . . . . . . . . 4 . . . Spaces Dug 78 | . . . . 5 9 26 33 . . . 3 . . . 2 Terrain Destroyed 359 | . . . . 11 29 98 90 . . . 122 1 . . 8 Melee 2 | . . . . . . . . . . . . . . . 2 Projectile 17 | . . . . . . . . . . . 10 1 . . 6 AOE 340 | . . . . 11 29 98 90 . . . 112 . . . . Terrain Rammed . | . . . . . . . . . . . . . . . . Walls Destroyed . | . . . . . . . . . . . . . . . . Machines Disabled . | . . . . . . . . . . . . . . . . Actions | -11 -10 -10 -9 -8 -7 -6 -5 -5 -5 -5 -4 -4 -4 -3 -3 --------- Run | Yrd Mat Min Mat Mat Fac Fac Fac Was Fac DSF Fac Upp Upp Res Tes Total 7148 | 62 122 420 944 657 1009 669 439 186 45 193 722 743 13 135 789 Wait 984 | . 13 18 169 236 181 34 38 11 13 7 29 82 . 6 147 Move 5384 | 46 100 362 724 362 738 524 368 154 32 134 548 643 13 121 515 Hop 2 | . . . . . . . . . . . 1 . . 1 . Pick Up 130 | 6 4 7 10 9 12 22 4 8 . 8 21 3 . 1 15 Fast Attach 22 | 4 . . . . . 2 . . . 7 1 . . . 8 Attach 106 | 3 . . 6 5 6 21 2 2 . 3 34 6 . 2 16 Detach 33 | . . 1 . 3 . 4 . . . 5 8 4 . 1 7 Swap 49 | . 2 4 1 7 11 12 5 3 . . 3 . . . 1 Drop 92 | . 1 5 . 1 8 20 . 7 . 21 16 . . . 13 Fire 268 | 3 2 20 26 29 40 30 22 . . . 60 2 . 3 31 Melee 27 | . . . . . . . . . . . . 3 . . 24 Ram 22 | . . 3 8 5 5 . . . . . 1 . . . . Kick . | . . . . . . . . . . . . . . . . Crush . | . . . . . . . . . . . . . . . . Escape Stasis 28 | . . . . . 8 . . . . 8 . . . . 12 Rewire 1 | . . . . . . . . 1 . . . . . . . Trap . | . . . . . . . . . . . . . . . . Miscellaneous . | . . . . . . . . . . . . . . . . Route ------- -11/Scrapyard -10/Materials (discovered 2 exits: *Min x2) -10/Mines -9/Materials (discovered 3 exits: *Mat x3) -8/Materials -7/Factory -6/Factory -5/Factory -5/Waste -5/Factory -5/DSF -4/Factory (discovered 5 exits: Res x4 / *Upp) -4/Upper Caves -4/Upper Caves -3/Research -3/Testing History --------- Turn | Location | Event 34 | -11/Scrapyard | Discovered new exit (range 14) 71 | -11/Scrapyard | Entered Materials 124 | -10/Materials | Identified exit to Mines 208 | -10/Materials | Entered Mines 344 | -10/Mines | Build established: Mutant 496 | -10/Mines | Discovered new exit (range 9) 572 | -10/Mines | A weapon hastily lodged in a ceiling crevice suddenly fell to the ground 613 | -10/Mines | Found the Drone Emporium 618 | -10/Mines | Found Prototype Device 619 | -10/Mines | Identified Sensor Drone Bay 720 | -10/Mines | Entered Materials 720 | -9/Materials | Evolved 2 slots: Propulsion x1, Weapon x1 869 | -9/Materials | Repaired Mak. Shrapnel Gun? 1026 | -9/Materials | Identified exit to Materials 1696 | -9/Materials | Build established: Gunner 1716 | -9/Materials | Repaired Lgt. Nuclear Core? 1797 | -9/Materials | Entered another Materials area 1797 | -8/Materials | Accompanied by 1 ally 1797 | -8/Materials | Evolved 2 slots: Utility x2 2370 | -8/Materials | Build established: Scavenger-Skirmisher 2505 | -8/Materials | Discovered new exit (range 9) 2546 | -8/Materials | Entered Factory 2546 | -7/Factory | Accompanied by 1 ally 2546 | -7/Factory | Evolved 2 slots: Power x1, Utility x1 2830 | -7/Factory | Build established: Skirmisher 3015 | -7/Factory | Lost 3 parts (2n1w) 3309 | -7/Factory | Build established: Scavenger-Skirmisher 3672 | -7/Factory | Discovered new exit (range 8) 3686 | -7/Factory | Identified exit to Factory 3688 | -7/Factory | Entered another Factory area 3688 | -6/Factory | Accompanied by 1 ally 3688 | -6/Factory | Evolved 2 slots: Propulsion x1, Weapon x1 3997 | -6/Factory | Spotted B-75 Beast 4414 | -6/Factory | Repaired Com. Wheel 4501 | -6/Factory | Discovered new exit (range 14) 4568 | -6/Factory | Entered another Factory area 4568 | -5/Factory | Evolved 2 slots: Utility x2 4590 | -5/Factory | Build established: Scavenger-Tank 4754 | -5/Factory | Garrison activated, responded to threat 5091 | -5/Factory | Fabricated Enh. Nova Cannon? 5118 | -5/Factory | Sucked down chute 5118 | -5/Factory | Entered Waste 5119 | -5/Waste | Joined by Warlord forces that had cleared the area 5133 | -5/Waste | 1 allies followed down the chute 5306 | -5/Waste | Discovered new exit (range 10) 5328 | -5/Waste | Entered Factory 5328 | -5/Factory | Accompanied by 21 allies 5366 | -5/Factory | Identified exit to DSF 5379 | -5/Factory | Entered DSF 5379 | -5/DSF | Accompanied by 20 allies 5380 | -5/DSF | Joined Warlord attack on 0b10 via DSF 5398 | -5/DSF | Additional patrols routed to DSF 5424 | -5/DSF | Lost 5 allies 5478 | -5/DSF | Found Prototype Device 5487 | -5/DSF | Identified Active Sensor Suite 5519 | -5/DSF | Discovered new exit (range 14) 5569 | -5/DSF | Identified exit to Factory 5577 | -5/DSF | Entered Factory 5577 | -4/Factory | Accompanied by 18 allies 5577 | -4/Factory | Evolved 2 slots: Utility x2 5778 | -4/Factory | Build established: Hacker-Skirmisher 5795 | -4/Factory | Garrison activated, responded to threat 5867 | -4/Factory | Lost 16 allies 5894 | -4/Factory | Lost 7 parts (1p4n2w) 5954 | -4/Factory | Lost 6 parts (1p1n1u3w) 6054 | -4/Factory | Lost 3 parts (1n1u1w) 6077 | -4/Factory | First assault squad dispatched 6112 | -4/Factory | Lost 4 parts (3n1w) 6140 | -4/Factory | Core integrity fell below 50% 6295 | -4/Factory | Identified exit to Research 6306 | -4/Factory | Discovered new exit (range 9) 6308 | -4/Factory | Identified exit to Upper Caves 6324 | -4/Factory | Entered Upper Caves 6380 | -4/Upper Caves | Encountered a Warlord checkpoint 6382 | -4/Upper Caves | Build established: Hacker-Mutant 6416 | -4/Upper Caves | Learned Extension garrison access intel 6545 | -4/Upper Caves | Attracted the attention of an 0b10 checkpoint 6552 | -4/Upper Caves | Learned 4 Research zone layouts 6674 | -4/Upper Caves | Discovered new exit (range 7) 6677 | -4/Upper Caves | Entered another Upper Caves area 6679 | -4/Upper Caves | Attracted the attention of an 0b10 checkpoint 6680 | -4/Upper Caves | Discovered exit to Research (range 6) 6682 | -4/Upper Caves | Entered Research 6682 | -3/Research | Evolved 2 slots: Weapon x2 6722 | -3/Research | Fabricated Hacking Suite? 6724 | -3/Research | Garrison activated, responded to threat 6743 | -3/Research | Discovered new exit (range 8) 6746 | -3/Research | Entered Testing 6882 | -3/Testing | Repaired KE Penetrator 6983 | -3/Testing | Repaired Spear 6997 | -3/Testing | Found Prototype Hackware 6997 | -3/Testing | Identified Ghost Barrier 7026 | -3/Testing | Found Prototype Energy Cannon 7026 | -3/Testing | Identified Disintegrator 7090 | -3/Testing | Scanned by Researcher 7111 | -3/Testing | Released all parts (12) 7171 | -3/Testing | Core integrity fell below 50% 7219 | -3/Testing | Lost 4 parts (3n1w) 7237 | -3/Testing | Core integrity fell below 20% 7362 | -3/Testing | Destroyed by S-43 Plague with Heavy Machine Gun Last Messages --------------- 07320_ System corrupted: Matter fused (-8). 07320_ Acquired Imp. Antigrav System. 07336_ Acquired Lance. 07338_ Connecting with Terminal... >>Layout(Zone) Retrieving Zone 7C layout... Downloaded map data. >>Traps(Locate) Found 1 trap in 1 array: 1x Alarm Trap Map updated. 07344_ Imp. Antigrav System destroyed. 07350_ Connecting with Terminal... 07350_ ALERT: Suspicious activity at Terminal T005. Dispatching Investigation squad. 07351_ Dropped Enh. Armored Leg. 07352_ Dropped Imp. Antigrav System. 07352_ Acquired Adv. Drone Bay. 07358_ K-01 Serf destroyed. 07358_ Acquired 16 matter. Map ----- +----------------------------------------------------+ | | | | | | | | | | | | | | | | | | | | | | | ?????????????????????????????????????????????????? | | ?????????????????????????????????????????????????? | | ?????????????????????????????????????????????????? | | ?????????????########????????????????????????????? | | ?????????????# #????????????????????????????? | | ?????????????# ] #????????????????????????????? | | ?????????????# #????????????????????????????? | | ""#??????????# =#????????????????????????????? | | ""#??????????# #????????????????????????????? | | ""####???????# ?????????????????????????????? | | ## ############+######+###########?????????????? | | + = ??????????? | | + = * ??????????? | | ## ####### ###/######s##########??????????????? | | ####?????# ## ! # @ #????????????????????? | | #????????# ## = #[ """#????????????????????? | | ###????????# ## = " s c"""#????????????????????? | | ???????????# ## T # """#????????????????????? | | ???????????# ## " #! #????????????????????? | | #####?????## ## ! # =#????????????????????? | | ! ####### ######+#######????????????????????? | | #???????????????????? | | ! T +???????????????????? | | ####### ############# #???????????????????? | | # ######### ###?????????????????????????????????? | | # ##/#####???????????????????????????????? | | # """" ## ???????????????????????????????? | | # """" ## """"???????????????????????????????? | | # # """" ## """"???????????????????????????????? | | # # """" ## """"???????????????????????????????? | | # + ## """"???????????????????????????????? | | # ^# ## " ???????????????????????????????? | | # # ##! ???????????????????????????????? | | # # ! ## ???????????????????????????????? | | # # = ##! ???????????????????????????????? | | # # ## ???????????????????????????????? | | # ## ! ???????????????????????????????? | | # ## ???????????????????????????????? | | ##+############+###########???????????????????? | +----------------------------------------------------+ Best States ------------- Heat Dissipation 57 Energy Generation 33 Energy Capacity 300 Matter Stores 300 Matter Capacity 300 Sight Range 16 Robot Scan Range 20 Terrain Scan Range 20 Terrain Scan Density 110 ECM Strength 4 Corruption Block 13 Armor Coverage 225 Resistance: KI 20 Resistance: TH 20 Resistance: EX 20 Resistance: EM 20 Resistance: I 20 Resistance: S 20 Resistance: P 20 Weapon Cycling 15 Evasion (%) 62 Target Analysis 8 Recoil Reduction 2 Offensive Hacking 34 Defensive Hacking 30 Item Schematics ----------------- ECM Suite | -8/Materials | Scanalyzed Hacking Suite | -8/Materials | Scanalyzed Grenade Launcher | -7/Factory | Scanalyzed Gatling Laser | -5/Factory | Scanalyzed System Restoration Module | -5/Factory | Scanalyzed Exp. Optical Array | -3/Testing | Archive Adv. Remote Shield | -3/Testing | Archive Cld. Impulse Thruster | -3/Testing | Archive Ionic Axe | -3/Testing | Archive Hvy. Dispersion Rifle | -3/Testing | Archive Hvy. Wave Gun | -3/Testing | Archive Adv. Plasma Rifle | -3/Testing | Archive Diametric Drive | -3/Testing | Archive Robot Schematics ------------------ S-43 Plague | -3/Testing | Archive K-01 Serf | -3/Testing | Archive T-07 Excavator | -3/Testing | Archive B-74 Champion | -3/Testing | Archive Fabricated ------------ Enh. Nova Cannon | x1 | -5/Factory | Preloaded Hacking Suite | x1 | -3/Research Alien Tech Used ----------------- None Achievements -------------- Omniscient Cartographer Challenges ------------ None Game ------ Seed TeslaDerelictTerminator Manual? 0 Play Time 02:32:43 Cumulative 27.3 hours Start 2024.04.23 @ 22:20:11 End 2024.04.24 @ 01:00:05 Sessions 1 Manual Loads 0 Difficulty Adventurer Special Mode None Game No. 24 Rogue 0 Adventurer 17 Explorer 7 Win Type - Total 0 Types 0/0/0/0/0/0/0/0/0 Lore% 10 Gallery% 37 Achievement% 28 Wizard Run 0 Options --------- Layout 1 ASCII 0 Keyboard 0 Movement Mouse Keybinds 0 Fullscreen 0 Font 16/Smallcaps Map View 64x42 Zoom Use 0% Tactical HUD 1 Map Filters NONE Filters NONE Steam 1 RUN: a32c842f-5a4e-4f4d-96a0-764d6f576f67